Workbook

Sheet Calculation Sheet
B1: TPS25983 Design Calculation Tool | AA1: Yes | AB1: 4
B2: Constants Cells | C2: Input/SelectCells | D2: Calculation Cells | G2: Recommended | AA2: No | AB2: 16
B3: Error Cells, Must be Fixed | C3: Calculated, but can be over-ridden by user | G3: Value | AA3: Auto-Retry | AB3: 64
B4: Parameter | C4: Description | D4: Value | E4: Units | F4: Tolerance | AA4: Latch-off | AB4: 256
B5: VIN (nom) | C5: Nominal operating input voltage | D5: 15 | E5: V | AB5: Infinite
B6: VIN (max) | C6: Maximum Operating input voltage (magnitude) | D6: 25 | E6: V | G6: =IF(RIGHT(#REF!,2)="7L",24,(IF(RIGHT(#REF!,2)="7O",24,#REF!))) -> 
B7: OVLOset | C7: Overvoltage Threshold (VIN Rising) | D7: 26 | E7: V
B8: UVLOset | C8: Undervoltage Threshold (VIN Rising) | D8: 4 | E8: V
B9: VUVP | C9: Internal IN Undervoltage Protection Threshold (VIN Rising) | D9: 2.53 | E9: V | F9: 0.027
B10: Cout | C10: Load Capacitance | D10: 62 | E10: uF | F10: 0.1
B11: Rlstart | C11: Load at start-up (assumed to be resistive), Refer to Section 9.2.2.5.2 in Datasheet | D11: 24 | E11: Ohm | G11: =Vcc_nom/Imax -> 0.8333333333
B12: Imax | C12: Maximum continuous load current (magnitude) | D12: 18 | E12: A
B13: Ilimit | C13: Set current Limit 20% (typical) higher than maximum continuous load current | D13: =Imax*1.2 -> 21.6 | E13: A
B14: TA(max) | C14: Max Ambient Temperature | D14: 70 | E14: degC
C15: Do you need to be immue to line transient due to adjacent card “hot-swap events” | D15: No
B16: tITIMER | C16: Enter the time interval to support load transient currents | D16: 2000 | E16: us
C17: Fault Response | D17: Auto-Retry
B18: tRETRY_DLY | C18: Time delay between retries | D18: 100 | E18: ms
B19: NRETRY | C19: Number of retries | D19: 4
B20: Rec_VIMONMax | C20: Recommended maximum IMON voltage | D20: =IF(Vcc_nom<5, IF(Vcc_nom<3.3, 1, 1.8), 3.3) -> 3.3 | E20: V
B21: VIMON-Max | C21: Enter current monitor (IMON) full-scale voltage range | D21: 2 | E21: V
B23: UVLO, OVLO set point calculations | L23: =IF(D24>=100,D24,IF(D24>=10,D24*10,D24*100)) -> 400 | P23: =(OVref*D26)/(D24-OVref) -> 213.8571429
B24: UVLO Set Point | C24: Desired Undervoltage Threshold (VIN Rising) | D24: =UVset -> 4 | J24: =D33 -> 3.653269405 | K24: Power Fail (VIN Falling) | L24: =IF(D25>=100,D25,IF(D25>=10,D25*10,D25*100)) -> 260
B25: OVLO Set Point | C25: Desired Over Voltage Lockout Set Point | D25: =D7 -> 26 | J25: =D32 -> 3.985384806 | K25: Release UVLO (VIN Rising)
B26: R1: Pullup at EN/OVLO Pin | C26: Value > 350K recommended | D26: 499 | E26: kOhm | F26: 0.01 | J26: =D34 -> 25.97920009 | K26: OV Cut-off (VIN Rising) | L26: =INDEX('Res EIA Tables'!E$5:E$197,2+MATCH(L24,'Res EIA Tables'!E$5:E$197)) -> 261
B27: R2_cal | C27: Calculated value of Resistor at EN/OVLO pin | D27: =P23-D28 -> 180.956044 | E27: kOhm
B28: R3_cal | C28: Calculated value of Resistor at EN/OVLO pin | D28: =(D26+P23)*OVref/D25 -> 32.9010989 | E28: kOhm
B29: SELECT THE VALUE OF RESISTORS AS CLOSEST AVAILABLE VALUE OF R2 & R3
B30: R2 | C30: Select the closest possible value as R2_cal | D30: =G30 -> 182 | E30: kOhm | F30: 0.01 | G30: =L42/L41*D27 -> 182
B31: R3 | C31: Select the closest possible value as R3_cal | D31: =G31 -> 32.97927281 | E31: kOhm | F31: 0.01 | G31: =L44/L43*D28 -> 32.97927281
B32: UV_final_rising | C32: Undervoltage Threshold (VIN Rising) | D32: =OVref*(D26+D30+D31)/(D30+D31) -> 3.985384806 | E32: V
B33: UV_final_falling | C33: Undervoltage Threshold (VIN Falling) | D33: =UVref*(D26+D30+D31)/(D30+D31) -> 3.653269405 | E33: V
B34: OV_final_rising | C34: Overvoltage Threshold (VIN Rising) | D34: =OVref*(D26+D30+D31)/(D31) -> 25.97920009 | E34: V
B35: OV_final_falling | C35: Overvoltage Threshold (VIN Falling) | D35: =UVref*(D26+D30+D31)/(D31) -> 23.81426675 | E35: V
B36: I_R123 | C36: Current in R1, R2 and R3 Branch | D36: =D6*1000/(D26+D30+D31) -> 35.01502208 | E36: uA
B41: Calculations for Ilimit (resistor on ILIM Pin) | J41: =Icharge -> 0.046 | K41: Inrush Charging Current | L41: =IF(D27>=10000,D27/100,IF(D27>=1000,D27/10,IF(D27>=100,D27,IF(D27>=10,D27*10,D27*100)))) -> 180.956044
B42: RILIM_Cal | C42: Calculated current limit resistor | D42: =1460/(Ilimit-0.11) -> 67.93857608 | E42: Ohm | J42: =Ilimit_final -> 21.54906021 | K42: Overload Curr Limit | L42: =INDEX('Res EIA Tables'!E$5:E$197,2+MATCH(L41,'Res EIA Tables'!E$5:E$197)) -> 182
B43: SELECT A ILIMIT RESISTOR WITH THE CLOSEST AVAILABLE VALUE OF Rilim_Cal | L43: =IF(D42>=10000,D42/100,IF(D42>=1000,D42/10,IF(D42>=100,D42,IF(D42>=10,D42*10,D42*100)))) -> 679.3857608
B44: RILIM | C44: Select the closest available value of RILIM_cal | D44: =G44 -> 68.1 | E44: Ohm | F44: 0.01 | G44: =L44*D42/L43 -> 68.1 | L44: =INDEX('Res EIA Tables'!E$5:E$197,2+MATCH(L43,'Res EIA Tables'!E$5:E$197)) -> 681
B45: Ilimit_final | C45: Final current Limit Set Point | D45: =((1460/RILIM)+0.11) -> 21.54906021 | E45: A | F45: =SQRT(((27.875*((1460/D44)+0.11)^-0.459)/100)^2+F44^2) -> 0.06883404669 | G45: =((1460/G44)+0.11)*(100-(27.875*((1460/G44)+0.11)^-0.459))/100 -> 20.08148757 | H45: A
B47: Calculations for CURRENT MONITOR | L47: =IF(G48>=100,G48,IF(G48>=10,G48*10,G48*100)) -> 381.9402144
B48: RIMON_max | C48: Maximum allowed resistance at IMON pin | D48: =Vimon_max/(Ilimit_final*243*10^-6) -> 381.9402144 | E48: Ohm | G48: =D48 -> 381.9402144 | L48: =IF(L47>1000,INDEX('Res EIA Tables'!E$5:E$197,MATCH(L47/10,'Res EIA Tables'!E$5:E$197))*10,INDEX('Res EIA Tables'!E$5:E$197,MATCH(L47,'Res EIA Tables'!E$5:E$197))) -> 374
B49: RIMON_sel | C49: Resistor value selected at IMON pin | D49: =G49 -> 374 | E49: Ohm | F49: 0.01 | G49: =L48*G48/L47 -> 374
B50: VIMON_final | C50: Maximum voltage at IMON for maximum load current | D50: =(Ilimit_final*RMON_sel*243*10^-6) -> 1.95842169 | E50: V | F50: =SQRT(F129^2+F49^2) -> 0.0316227766
B51: The range of voltage output at IMON pin will be from 0V to VMON_imax | D51: =IF(D50>D21,"VIMON is Outside limits of uC interface", "VIMON is Within Limits") -> VIMON is Within Limits
B53: Calculations for SoftStart control (external cap on dVdt pin)
B54: Parameter | C54: Description | D54: Value | E54: Units | F54: Tolerance
B55: Tchg_fastest | C55: When no external capacitor is connected (max. slew rate) | D55: =Vcc_nom/7.35 -> 2.040816327 | E55: ms | F55: 0.15
B56: Icharge_fastest | C56: Charging current when charging at fastest possible rate If this current is < Ilimit, no capacitor is required at dVdT pin | D56: =MIN(Cout*(Vcc_nom/D55)/1000, Ilimit_final) -> 0.4557 | E56: A
B57: Tchg_req | C57: The charging time required | D57: 20 | E57: ms
B58: Icharge_req | C58: Charging (inrush) current desired in the system | D58: 1 | E58: A
B59: Cext_dvdt_cal1 | C59: Calculated value of capacitor at dVdT pin for required Tcharge | D59: =IF(Tchg_req<Tchg_fastest, 0, (4600*Tchg_req/Vcc_nom)/1000) -> 6.133333333 | E59: nF
B60: Cext_dvdt_cal2 | C60: Calculated value of capacitor at dVdT pin for required Icharge | D60: =(4600*(Cout/1000)/Icharge_req)/1000 -> 0.2852 | E60: nF | G60: =MAX(Cdvdt_ext_cal1,Cext_dvdt_cal2) -> 6.133333333
B61: SELECT A CAPACITOR WITH THE CLOSEST POSSIBLE VALUE to max(Cext_dvdt_cal1, Cext_dvdt_cal2)
B62: CdVdT_ext | C62: The external capacitor connecetd across dVdT pin | D62: =G62 -> 6.2 | E62: nF | F62: 0.1 | G62: =IF(G60>1, INDEX('Cap Tables'!B4:B75,1+MATCH(G60,'Cap Tables'!B4:B75)), INDEX('Cap Tables'!A4:A75,1+MATCH(G60*10,'Cap Tables'!A4:A75))/10) -> 6.2
B63: Icharge | C63: Charging Current as per dVdT setting | D63: =(Cout/1000)*(4600/(Cdvdt_ext*1000)) -> 0.046 | E63: A | F63: =SQRT(F55^2+F62^2) -> 0.1802775638
B64: Does Device Enter Current Limit during start-up? | D64: =((Icharge+Vcc_nom/Rlstart) >= Ilimit_final) -> FALSE | G64: =Cout*0.001*Rlstart*(Ilimit_final/Icharge -1+LN(Icharge/(Ilimit_final-Vcc_nom/Rlstart))) -> 686.4706717
B65: Tchg_dVdT | C65: Charging time set | D65: =IF(D64, G64, ((Cdvdt_ext*1000*Vcc_nom)/(4600))) -> 20.2173913 | E65: ms | F65: =SQRT(F62^2+F55^2) -> 0.1802775638
B66: Pd_Cout_startup | C66: Power dissipation due to load cap at start-up | D66: =0.5*Vcc_nom*Icharge -> 0.345 | E66: W
B68: Total Power dissipation at Start-up
B69: Pd_Rlstart | C69: Power dissipation due to load resistance at start-up | D69: =(1/6)*(Vcc_nom^2)/Rlstart -> 1.5625 | E69: W
B70: Pd_startup | C70: Total power dissipation at start-up | D70: =D66+D69 -> 1.9075 | E70: W | L70: =(D65/1679.1)^(-1/1.946) -> 9.689603007 | M70: =INDEX('LUT "TSD vs PD start-up"'!C2:D21,MATCH(Tchg_dvdt,'LUT "TSD vs PD start-up"'!D2:D21,-1),1) -> 9.28
C71: Max power dissipation allowed for glitch-free startup for the programmed startup time (20% margin) | D71: =G71*0.8 -> 7.751682406 | E71: W | F71: 0.2 | G71: =IF(Vcc_nom >16.5, L71,L70) -> 9.689603007 | L71: =(D65/467.3)^(-1/1.661) -> 6.623906396 | M71: =INDEX('LUT "TSD vs PD start-up"'!A2:B24,MATCH(Tchg_dvdt,'LUT "TSD vs PD start-up"'!B2:B24,-1),1) -> 6.69
C72: Will the system have glitch-free startup? Look at Thermal Shutdown Limit Plot Tab | D72: =IF(D70<(D71),"YES","NO, Increase Rlstart and/or Tchg_req; and/or Reduce Cout") -> YES
B74: Steady state Voltage drop & Power dissipation
B75: Parameter | C75: Description | D75: Value | E75: Units | F75: Tolerance
B76: Vdrop | C76: Maximum voltage drop across device @ 25 degC | D76: =Imax*Rdson_25deg -> 57.6 | E76: mV
B77: Pdiss_Imax | C77: Steady state power dissipation with Max current @ 25degC | D77: =Imax^2*Rdson_25deg -> 1036.8 | E77: mW
B79: Calculations for Transient Overcurrent Blanking Interval
B80: Citimer_cal | C80: Calculated value of capacitor at ITIMER pin | D80: =tITIMER/470 -> 4.255319149 | E80: nF | G80: =D80 -> 4.255319149
B81: Citimer_sel | C81: Capacitor value selected at ITIMER pin | D81: =G81 -> 4.3 | E81: nF | F81: 0.1 | G81: =INDEX('Cap Tables'!B4:B75,1+MATCH(G80,'Cap Tables'!B4:B75)) -> 4.3
B82: tITIMER_final | C82: Time duration for which load transients between Ilimit and 2.1xIlimit are allowed | D82: =D81*470 -> 2021 | E82: us | G82: =(D133/53000)/1000*10^9 -> 517.1819868 | H82: nF
B84: Setting the Auto-Retry Delay and Number of Retries
B85: CRETRY_DLY_cal | C85: Calculated value of capacitor at RETRY_DLY pin | D85: =((tRETRY_DLY*1000/46.83)-4)/1000 -> 2.131383301 | E85: nF | G85: =D85 -> 2.131383301
B86: CRETRY_DLY_sel | C86: Capacitor value selected at RETRY_DLY pin | D86: =G86 -> 2.2 | E86: nF | F86: 0.1 | G86: =IF(G85>1, INDEX('Cap Tables'!B4:B75,1+MATCH(G85,'Cap Tables'!B4:B75)), INDEX('Cap Tables'!A4:A75,1+MATCH(G85*10,'Cap Tables'!A4:A75))/10) -> 2.2
B87: tRETRY_DLY_final | C87: Time delay between retries | D87: =((D86*1000+4)*46.83)/1000 -> 103.21332 | E87: ms
B88: CNRETRY_cal | C88: Calculated value of capacitor at NRETRY pin | D88: =IF(NRETRY="Infinite", "Short to Gnd", NRETRY*(D86*1000+4)/4000) -> 2.204 | E88: nF | G88: =IF(D88 ="Short to Gnd", "Short to Gnd", 0.9*D88) -> 1.9836
B89: CNRETRY_sel | C89: Capacitor value selected at NRETRY pin | D89: =G89 -> 1.8 | E89: nF | F89: 0.1 | G89: =IF(D88 ="Short to Gnd", "Short to Gnd", INDEX('Cap Tables'!B4:B75,MATCH(G88,'Cap Tables'!B4:B75))) -> 1.8 | H89: =4*D89*1000/(D86*1000+4) -> 3.266787659
B90: NRETRY_final | C90: Number of retries | D90: =H90 -> 4 | G90: =IF(D89="Short to Gnd", "Infinite", 1024*((Ncalc/1024)-TRUNC(Ncalc/1024))) -> 3.266787659 | H90: =Nretry!F5 -> 4
B95: Design Summary
D96: R1 = | E96: =RpUVLO -> 4 | F96: kOhm | G96: Parameter | I96: Typical | J96: Units
D97: R2 = | E97: =D30 -> 182 | F97: kOhm | G97: Current limit | I97: =Ilimit_final -> 21.54906021 | J97: A
D98: R3 = | E98: =D31 -> 32.97927281 | F98: kOhm | G98: Upper UVLO Threshold | I98: =D32 -> 3.985384806 | J98: V
D99: RG = | E99: 2 | F99: Ohm | G99: Lower UVLO Threshold | I99: =D33 -> 3.653269405 | J99: V
D100: RILIM = | E100: =RILIM -> 68.1 | F100: Ohm | G100: Output voltage ramp time, TdVdt | I100: =Tchg_dvdt -> 20.2173913 | J100: ms
D101: RIMON = | E101: =RMON_sel -> 374 | F101: Ohm
D102: RPG = | E102: 10 | F102: kOhm | G102: Transient overcurrent blanking interval (tITIMER) | I102: =D82 -> 2021 | J102: us
D103: CdVdt = | E103: =Cdvdt_ext -> 6.2 | F103: nF
D104: CITIMER = | E104: =D81 -> 4.3 | F104: nF | G104: Time delay between retries | I104: =IF(D17="Latch-off", "Latch-off", D87) -> 103.21332 | J104: ms
D105: CRETRY_DLY = | E105: =IF(D17="Latch-off", "Short to Gnd", D86) -> 2.2 | F105: nF | G105: Number of retries | I105: =IF(D17="Latch-off", 0, D90) -> 4
D106: CNRETRY = | E106: =D89 -> 1.8 | F106: nF
G107: Overvoltage lockout | I107: =D34 -> 25.97920009 | J107: V
B108: Notes: | C108: 1. Although not mandatory, CIN provides transient suppression at the VIN pin | D108: CIN = | E108: 0.01uF | F108: uF
C109: 2. TVS clamp diode D1 from VIN to GND is recommented to clamp the voltage overshoot during device turn-off, e.g. during circuit breaker | D109: COUT = | E109: Optional
C110: 3. Schottky diode D2 from VOUT to GND is mandatory to absorb negative spikes | D110: D1 = | E110: SMCJxx
D111: D2 = | E111: B530C-13-F
B113: Parameters internal to Device
B114: Internal FET Parameters
B115: Parameter | C115: Description | D115: Value | E115: Units | F115: Tolerance
B116: VDSS (max) | C116: FET drain-source voltage rating (maximum) | D116: 30 | E116: V
B117: ID(max) | C117: FET drain-source current rating (maximum) | D117: 18 | E117: A
B118: Rds(on) | C118: FET maximum Rds(on) at 25degC | D118: 3.2 | E118: mOhm
B119: Rds(on)_max | C119: FET maximum Rds(on) at 125degC | D119: 4.5 | E119: mOhm
B120: Thermal Parameters
B121: Tj(max) | C121: Device maximum junction temperature | D121: 150 | E121: C
B122: TA(max) | C122: Maximum ambient temperature of the application | D122: 125 | E122: C
B123: RJC(top) | C123: Junction to case (top) Thermal Resistance | D123: 36.7 | E123: C/W
B124: RJA | C124: Junction to ambient thermal resistance | D124: 34.6 | E124: C/W
B125: RJC(bot) | C125: Junction-to-case(bottom) thermal resistance | D125: 1.6 | E125: C/W
B126: Internal References
B127: Uvref_rise | C127: Internal Undervoltage reference (Rising) | D127: 1.2 | E127: V | F127: 0.025
B128: Uvref_fall | C128: Internal Undervoltage reference (Falling) | D128: 1.1 | E128: V | F128: 0.027
B129: GainIMON | C129: Current monitor gain | D129: 243 | E129: uA/A | F129: 0.03
B130: Idvdt | C130: dVdt Pin Charging Current | D130: 4.76 | E130: uA | F130: 0.03
B131: Delay
B132: tD,ON | C132: Device turn ON delay | D132: =(0.0663*Cdvdt_ext/3.3)*Vcc_nom+1.3153 -> 3.183754545 | E132: ms
B133: tGHI | C133: Time taken to reach steady state | D133: =D132+(Cdvdt_ext*(Vcc_nom+3.6)/D130) -> 27.4106453 | E133: ms

Sheet LUT "TSD vs PD start-up" (hidden)
A1: PD (20V) | B1: tTSD | C1: Pd (12V)(W) | D1: tsd (ms)
A2: 5.65 | B2: 29.4 | C2: 5.95 | D2: 52.4
A3: 6.06 | B3: 25.8 | C3: 6.48 | D3: 43.97
A4: 6.69 | B4: 21.9 | C4: 7.34 | D4: 34.8
A5: 7.2 | B5: 18.7 | C5: 8.019 | D5: 29.16
A6: 7.984 | B6: 15.8 | C6: 8.579 | D6: 26
A7: 8.923 | B7: 12.983 | C7: 9.28 | D7: 22.77
A8: 9.5 | B8: 11.64 | C8: 10 | D8: 20.01
A9: 10.16 | B9: 10.45 | C9: 10.64 | D9: 17.76
A10: 12.9 | B10: 6.76 | C10: 11.63 | D10: 15.5
A11: 16.58 | B11: 4.28 | C11: 28.8 | D11: 2.134
A12: 20.17 | B12: 2.85 | C12: 30.3 | D12: 1.87
A13: 23.5 | B13: 2.175 | C13: 31.67 | D13: 1.67
A14: 28 | B14: 1.22 | C14: 35.5 | D14: 1.44
A15: 30.8 | B15: 1.08 | C15: 36.2 | D15: 1.42
A16: 34.22 | B16: 0.98 | C16: 36.65 | D16: 1.329
A17: 40.5 | B17: 0.806 | C17: 42.92 | D17: 1.147
A18: 42.7 | B18: 0.796 | C18: 44 | D18: 1.1
A19: 47.9 | B19: 0.73 | C19: 45.7 | D19: 1.06
A20: 52.6 | B20: 0.685 | C20: 52.24 | D20: 0.941
A21: 57.8 | B21: 0.652 | C21: 54.54 | D21: 0.9
A22: 59.57 | B22: 0.65
A23: 71 | B23: 0.552
A24: 72.18 | B24: 0.551

Sheet Res EIA Tables (hidden)
A1: Standard EIA Decade Resistor Values
A3: 0.2 | B3: 0.1 | C3: 0.05 | D3: 0.02 | E3: 0.01 | F3: 0.5%, 0.25%, 0.1%
A4: E6 | B4: E12 | C4: E24 | D4: E48 | E4: E96 | F4: E192
A5: 100 | B5: 100 | C5: 100 | D5: 100 | E5: 100 | F5: 100
F6: 101
E7: 102 | F7: 102
F8: 104
D9: 105 | E9: 105 | F9: 105
F10: 106
E11: 107 | F11: 107
F12: 109
C13: 110 | D13: 110 | E13: 110 | F13: 110
F14: 111
E15: 113 | F15: 113
F16: 114
D17: 115 | E17: 115 | F17: 115
F18: 117
E19: 118 | F19: 118
F20: 120
B21: 120 | C21: 120 | D21: 121 | E21: 121 | F21: 121
F22: 123
E23: 124 | F23: 124
F24: 126
D25: 127 | E25: 127 | F25: 127
F26: 129
E27: 130 | F27: 130
F28: 132
C29: 130 | D29: 133 | E29: 133 | F29: 133
F30: 135
E31: 137 | F31: 137
F32: 138
D33: 140 | E33: 140 | F33: 140
F34: 142
E35: 143 | F35: 143
F36: 145
A37: 150 | B37: 150 | C37: 150 | D37: 147 | E37: 147 | F37: 147
F38: 149
E39: 150 | F39: 150
F40: 152
D41: 154 | E41: 154 | F41: 154
F42: 156
E43: 158 | F43: 158
F44: 160
C45: 160 | D45: 162 | E45: 162 | F45: 162
F46: 164
E47: 165 | F47: 165
F48: 167
D49: 169 | E49: 169 | F49: 169
F50: 172
E51: 174 | F51: 174
F52: 176
B53: 180 | C53: 180 | D53: 178 | E53: 178 | F53: 178
F54: 180
E55: 182 | F55: 182
F56: 184
D57: 187 | E57: 187 | F57: 187
F58: 189
E59: 191 | F59: 191
F60: 193
C61: 200 | D61: 196 | E61: 196 | F61: 196
F62: 198
E63: 200 | F63: 200
F64: 203
D65: 205 | E65: 205 | F65: 205
F66: 208
E67: 210 | F67: 210
F68: 213
A69: 220 | B69: 220 | C69: 220 | D69: 215 | E69: 215 | F69: 215
F70: 218
E71: 221 | F71: 221
F72: 223
D73: 226 | E73: 226 | F73: 226
F74: 229
E75: 232 | F75: 232
F76: 234
C77: 240 | D77: 237 | E77: 237 | F77: 237
F78: 240
E79: 243 | F79: 243
F80: 246
D81: 249 | E81: 249 | F81: 249
F82: 252
E83: 255 | F83: 255
F84: 258
B85: 270 | C85: 270 | D85: 261 | E85: 261 | F85: 261
F86: 264
E87: 267 | F87: 267
F88: 271
D89: 274 | E89: 274 | F89: 274
F90: 277
E91: 280 | F91: 280
F92: 284
C93: 300 | D93: 287 | E93: 287 | F93: 287
F94: 291
E95: 294 | F95: 294
F96: 298
D97: 301 | E97: 301 | F97: 301
F98: 305
E99: 309 | F99: 309
F100: 312
A101: 330 | B101: 330 | C101: 330 | D101: 316 | E101: 316 | F101: 316
F102: 320
E103: 324 | F103: 324
F104: 328
D105: 332 | E105: 332 | F105: 332
F106: 336
E107: 340 | F107: 340
F108: 344
C109: 360 | D109: 348 | E109: 348 | F109: 348
F110: 352
E111: 357 | F111: 357
F112: 361
D113: 365 | E113: 365 | F113: 365
F114: 370
E115: 374 | F115: 374
F116: 379
B117: 390 | C117: 390 | D117: 383 | E117: 383 | F117: 383
F118: 388
E119: 392 | F119: 392
F120: 397
D121: 402 | E121: 402 | F121: 402
F122: 407
E123: 412 | F123: 412
F124: 417
C125: 430 | D125: 422 | E125: 422 | F125: 422
F126: 427
E127: 432 | F127: 432
F128: 437
D129: 442 | E129: 442 | F129: 442
F130: 448
E131: 453 | F131: 453
F132: 459
A133: 470 | B133: 470 | C133: 470 | D133: 464 | E133: 464 | F133: 464
F134: 470
E135: 475 | F135: 475
F136: 481
D137: 487 | E137: 487 | F137: 487
F138: 493
E139: 499 | F139: 499
F140: 505
C141: 510 | D141: 511 | E141: 511 | F141: 511
F142: 517
E143: 523 | F143: 523
F144: 530
D145: 536 | E145: 536 | F145: 536
F146: 542
E147: 549 | F147: 549
F148: 556
B149: 560 | C149: 560 | D149: 562 | E149: 562 | F149: 562
F150: 569
E151: 576 | F151: 576
F152: 583
D153: 590 | E153: 590 | F153: 590
F154: 597
E155: 604 | F155: 604
F156: 612
C157: 620 | D157: 619 | E157: 619 | F157: 619
F158: 626
E159: 634 | F159: 634
F160: 642
D161: 649 | E161: 649 | F161: 649
F162: 657
E163: 665 | F163: 665
F164: 673
A165: 680 | B165: 680 | C165: 680 | D165: 681 | E165: 681 | F165: 681
F166: 690
E167: 698 | F167: 698
F168: 706
D169: 715 | E169: 715 | F169: 715
F170: 723
E171: 732 | F171: 732
F172: 741
C173: 750 | D173: 750 | E173: 750 | F173: 750
F174: 759
E175: 768 | F175: 768
F176: 777
D177: 787 | E177: 787 | F177: 787
F178: 796
E179: 806 | F179: 806
F180: 816
B181: 820 | C181: 820 | D181: 825 | E181: 825 | F181: 825
F182: 835
E183: 845 | F183: 845
F184: 856
D185: 866 | E185: 866 | F185: 866
F186: 876
E187: 887 | F187: 887
F188: 898
C189: 910 | D189: 909 | E189: 909 | F189: 909
F190: 920
E191: 931 | F191: 931
F192: 942
D193: 953 | E193: 953 | F193: 953
F194: 965
E195: 976 | F195: 976
F196: 988
A197: 1000 | B197: 1000 | C197: 1000 | D197: 1000 | E197: 1000 | F197: 1000 | G197: End Values Required for Processing

Sheet Cap Tables (hidden)
A1: Standard Capacitor Values
A3: pF | B3: nF | C3: µF | D3: mF
A4: 1 | B4: 1 | C4: 1 | D4: 1
A5: 1.1 | B5: 1.1 | C5: 1
A6: 1.2 | B6: 1.2 | C6: 1
A7: 1.3 | B7: 1.3 | C7: 1
A8: 1.5 | B8: 1.5 | C8: 1.5 | D8: 1.5
A9: 1.6 | B9: 1.6 | C9: 1.5
A10: 1.8 | B10: 1.8 | C10: 1.5
A11: 2 | B11: 2 | C11: 1.5
A12: 2.2 | B12: 2.2 | C12: 2.2 | D12: 2.2
A13: 2.4 | B13: 2.4 | C13: 2.2
A14: 2.7 | B14: 2.7 | C14: 2.2
A15: 3 | B15: 3 | C15: 2.2
A16: 3.3 | B16: 3.3 | C16: 3.3 | D16: 3.3
A17: 3.6 | B17: 3.6 | C17: =C18 -> 4.7
A18: 3.9 | B18: 3.9 | C18: 4.7
A19: 4.3 | B19: 4.3 | C19: =C20 -> 4.7
A20: 4.7 | B20: 4.7 | C20: 4.7 | D20: 4.7
A21: 5.1 | B21: 5.1 | C21: =C22 -> 6.8
A22: 5.6 | B22: 5.6 | C22: 6.8
A23: 6.2 | B23: 6.2 | C23: =C24 -> 6.8
A24: 6.8 | B24: 6.8 | C24: 6.8 | D24: 6.8
A25: 7.5 | B25: 7.5 | C25: =C26 -> 10
A26: 8.2 | B26: 8.2 | C26: 10
A27: 9.1 | B27: 9.1 | C27: =C28 -> 10
A28: 10 | B28: 10 | C28: 10 | D28: 10
A29: 11 | B29: =B30 -> 15 | C29: 15
A30: 12 | B30: 15 | C30: 15
A31: 13 | B31: =B32 -> 15 | C31: =C32 -> 15
A32: 15 | B32: 15 | C32: 15
A33: 16 | B33: =B34 -> 22 | C33: 22
A34: 18 | B34: 22 | C34: 22
A35: 20 | B35: =B36 -> 22 | C35: =C36 -> 22
A36: 22 | B36: 22 | C36: 22
A37: 24 | B37: =B38 -> 33 | C37: 33
A38: 27 | B38: 33 | C38: 33
A39: 30 | B39: =B40 -> 33 | C39: =C40 -> 33
A40: 33 | B40: 33 | C40: 33
A41: 36 | B41: =B42 -> 47 | C41: 47
A42: 39 | B42: 47 | C42: 47
A43: 43 | B43: =B44 -> 47 | C43: =C44 -> 47
A44: 47 | B44: 47 | C44: 47
A45: 51 | B45: =B46 -> 68 | C45: 68
A46: 56 | B46: 68 | C46: 68
A47: 62 | B47: =B48 -> 68 | C47: =C48 -> 68
A48: 68 | B48: 68 | C48: 68
A49: 75 | B49: =B50 -> 100 | C49: 100
A50: 82 | B50: 100 | C50: 100
A51: 91 | B51: =B52 -> 100 | C51: =C52 -> 100
A52: 100 | B52: 100 | C52: 100
A53: 110 | B53: =B54 -> 150 | C53: 150
A54: 120 | B54: 150 | C54: 150
A55: 130 | B55: =B56 -> 150 | C55: =C56 -> 150
A56: 150 | B56: 150 | C56: 150
A57: 160 | B57: =B58 -> 220 | C57: 220
A58: 180 | B58: 220 | C58: 220
A59: 200 | B59: =B60 -> 220 | C59: =C60 -> 220
A60: 220 | B60: 220 | C60: 220
A61: 240 | B61: =B62 -> 330 | C61: 330
A62: 270 | B62: 330 | C62: 330
A63: 300 | B63: =B64 -> 330 | C63: =C64 -> 330
A64: 330 | B64: 330 | C64: 330
A65: 360 | B65: =B66 -> 470 | C65: 470
A66: 390 | B66: 470 | C66: 470
A67: 430 | B67: =B68 -> 470 | C67: =C68 -> 470
A68: 470 | B68: 470 | C68: 470
A69: 510 | B69: =B70 -> 680 | C69: 680
A70: 560 | B70: 680 | C70: 680
A71: 620 | B71: =B72 -> 680 | C71: =C72 -> 680
A72: 680 | B72: 680 | C72: 680
A73: 750 | B73: =B74 -> 1000 | C73: =C74 -> 1000
A74: 820 | B74: =B75 -> 1000 | C74: =C75 -> 1000
A75: 910 | B75: 1000 | C75: 1000

Sheet Nretry (hidden)
A1: 0 | B1: 4
A2: 1 | B2: 4
A3: 2 | B3: 4
A4: 3 | B4: 4
A5: 4 | B5: 16 | D5: Nretry_quantized = | F5: =IF('Calculation Sheet'!G90="Infinite", "Infinite", VLOOKUP('Calculation Sheet'!G90,A1:B1024,2,TRUE)) -> 4
A6: 5 | B6: 16
A7: 6 | B7: 16
A8: 7 | B8: 16
A9: 8 | B9: 16
A10: 9 | B10: 16
A11: 10 | B11: 16
A12: 11 | B12: 16
A13: 12 | B13: 16
A14: 13 | B14: 16
A15: 14 | B15: 16
A16: 15 | B16: 16
A17: 16 | B17: 64
A18: 17 | B18: 64
A19: 18 | B19: 64
A20: 19 | B20: 64
A21: 20 | B21: 64
A22: 21 | B22: 64
A23: 22 | B23: 64
A24: 23 | B24: 64
A25: 24 | B25: 64
A26: 25 | B26: 64
A27: 26 | B27: 64
A28: 27 | B28: 64
A29: 28 | B29: 64
A30: 29 | B30: 64
A31: 30 | B31: 64
A32: 31 | B32: 64
A33: 32 | B33: 64
A34: 33 | B34: 64
A35: 34 | B35: 64
A36: 35 | B36: 64
A37: 36 | B37: 64
A38: 37 | B38: 64
A39: 38 | B39: 64
A40: 39 | B40: 64
A41: 40 | B41: 64
A42: 41 | B42: 64
A43: 42 | B43: 64
A44: 43 | B44: 64
A45: 44 | B45: 64
A46: 45 | B46: 64
A47: 46 | B47: 64
A48: 47 | B48: 64
A49: 48 | B49: 64
A50: 49 | B50: 64
A51: 50 | B51: 64
A52: 51 | B52: 64
A53: 52 | B53: 64
A54: 53 | B54: 64
A55: 54 | B55: 64
A56: 55 | B56: 64
A57: 56 | B57: 64
A58: 57 | B58: 64
A59: 58 | B59: 64
A60: 59 | B60: 64
A61: 60 | B61: 64
A62: 61 | B62: 64
A63: 62 | B63: 64
A64: 63 | B64: 64
A65: 64 | B65: 256
A66: 65 | B66: 256
A67: 66 | B67: 256
A68: 67 | B68: 256
A69: 68 | B69: 256
A70: 69 | B70: 256
A71: 70 | B71: 256
A72: 71 | B72: 256
A73: 72 | B73: 256
A74: 73 | B74: 256
A75: 74 | B75: 256
A76: 75 | B76: 256
A77: 76 | B77: 256
A78: 77 | B78: 256
A79: 78 | B79: 256
A80: 79 | B80: 256
A81: 80 | B81: 256
A82: 81 | B82: 256
A83: 82 | B83: 256
A84: 83 | B84: 256
A85: 84 | B85: 256
A86: 85 | B86: 256
A87: 86 | B87: 256
A88: 87 | B88: 256
A89: 88 | B89: 256
A90: 89 | B90: 256
A91: 90 | B91: 256
A92: 91 | B92: 256
A93: 92 | B93: 256
A94: 93 | B94: 256
A95: 94 | B95: 256
A96: 95 | B96: 256
A97: 96 | B97: 256
A98: 97 | B98: 256
A99: 98 | B99: 256
A100: 99 | B100: 256
A101: 100 | B101: 256
A102: 101 | B102: 256
A103: 102 | B103: 256
A104: 103 | B104: 256
A105: 104 | B105: 256
A106: 105 | B106: 256
A107: 106 | B107: 256
A108: 107 | B108: 256
A109: 108 | B109: 256
A110: 109 | B110: 256
A111: 110 | B111: 256
A112: 111 | B112: 256
A113: 112 | B113: 256
A114: 113 | B114: 256
A115: 114 | B115: 256
A116: 115 | B116: 256
A117: 116 | B117: 256
A118: 117 | B118: 256
A119: 118 | B119: 256
A120: 119 | B120: 256
A121: 120 | B121: 256
A122: 121 | B122: 256
A123: 122 | B123: 256
A124: 123 | B124: 256
A125: 124 | B125: 256
A126: 125 | B126: 256
A127: 126 | B127: 256
A128: 127 | B128: 256
A129: 128 | B129: 256
A130: 129 | B130: 256
A131: 130 | B131: 256
A132: 131 | B132: 256
A133: 132 | B133: 256
A134: 133 | B134: 256
A135: 134 | B135: 256
A136: 135 | B136: 256
A137: 136 | B137: 256
A138: 137 | B138: 256
A139: 138 | B139: 256
A140: 139 | B140: 256
A141: 140 | B141: 256
A142: 141 | B142: 256
A143: 142 | B143: 256
A144: 143 | B144: 256
A145: 144 | B145: 256
A146: 145 | B146: 256
A147: 146 | B147: 256
A148: 147 | B148: 256
A149: 148 | B149: 256
A150: 149 | B150: 256
A151: 150 | B151: 256
A152: 151 | B152: 256
A153: 152 | B153: 256
A154: 153 | B154: 256
A155: 154 | B155: 256
A156: 155 | B156: 256
A157: 156 | B157: 256
A158: 157 | B158: 256
A159: 158 | B159: 256
A160: 159 | B160: 256
A161: 160 | B161: 256
A162: 161 | B162: 256
A163: 162 | B163: 256
A164: 163 | B164: 256
A165: 164 | B165: 256
A166: 165 | B166: 256
A167: 166 | B167: 256
A168: 167 | B168: 256
A169: 168 | B169: 256
A170: 169 | B170: 256
A171: 170 | B171: 256
A172: 171 | B172: 256
A173: 172 | B173: 256
A174: 173 | B174: 256
A175: 174 | B175: 256
A176: 175 | B176: 256
A177: 176 | B177: 256
A178: 177 | B178: 256
A179: 178 | B179: 256
A180: 179 | B180: 256
A181: 180 | B181: 256
A182: 181 | B182: 256
A183: 182 | B183: 256
A184: 183 | B184: 256
A185: 184 | B185: 256
A186: 185 | B186: 256
A187: 186 | B187: 256
A188: 187 | B188: 256
A189: 188 | B189: 256
A190: 189 | B190: 256
A191: 190 | B191: 256
A192: 191 | B192: 256
A193: 192 | B193: 256
A194: 193 | B194: 256
A195: 194 | B195: 256
A196: 195 | B196: 256
A197: 196 | B197: 256
A198: 197 | B198: 256
A199: 198 | B199: 256
A200: 199 | B200: 256
... 824 more rows
